fUST/lending_fUST_20260416
["ID","MTS","AMOUNT","RATE_DAILY","PERIOD"]
[420594413,1776291039411,-560.8253947,0.00011523,2]
[420594414,1776291039420,-500.0,0.00011523,2]
[420594415,1776291039430,-532.67572369,0.00011523,2]
[420594416,1776291039441,-500.0,0.00011523,2]
[420594417,1776291039451,-560.8253947,0.00011523,2]
[420594418,1776291039461,-560.8253947,0.00011523,2]
[420594419,1776291039471,-560.8253947,0.00011523,2]
[420594420,1776291039480,-500.0,0.00011523,2]
[420594421,1776291039491,-560.8253947,0.00011523,2]
[420594422,1776291039501,-560.8253947,0.00011523,2]
[420594423,1776291039510,-560.8253947,0.00011523,2]
[420594424,1776291039520,-500.0,0.00011523,2]
[420594425,1776291039530,-560.8253947,0.00011523,2]
[420594426,1776291039539,-560.8253947,0.00011523,2]
[420594427,1776291039549,-560.8253947,0.00011523,2]
[420594428,1776291039559,-560.8253947,0.00011523,2]
[420594429,1776291039568,-560.8253947,0.00011523,2]
[420594430,1776291039578,-560.8253947,0.00011523,2]
[420594431,1776291039589,-560.8253947,0.00011523,2]
[420594432,1776291039598,-257.00093487,0.00011525,2]
[420594433,1776291039608,-4184.3413763,0.00011525,2]
[420594434,1776291039618,-2230.315306,0.00011565,2]
[420594435,1776291039628,-773.2413689,0.00011567,2]
[420594436,1776291039638,-801.85129955,0.00011622,2]
[420594437,1776291039647,-831.51979763,0.00011677,2]
[420594438,1776291039657,-862.28603014,0.00011732,2]
[420594439,1776291039667,-894.19061326,0.00011787,2]
[420594440,1776291039677,-927.27566595,0.00011842,2]
[420594442,1776291039687,-250.349567,0.00011847,2]
[420594443,1776291039698,-961.58486559,0.00011897,2]
[420594444,1776291039708,-997.16350561,0.00011952,2]
[420594445,1776291039717,-557.5788265,0.00011957,2]
[420594446,1776291039727,-10278.0501384,0.00012,2]
[420594447,1776291039736,-686.10606249,0.00012041,2]
[420594448,1776291039746,-151.0,0.00012054,2]
[420594449,1776291039755,-151.0,0.00012054,2]
[420594450,1776291039767,-59605.5895139,0.00012083,2]
[420594451,1776291039776,-9291.0535407,0.00012083,2]
[420594452,1776291039786,-16003.1412098,0.00012083,2]
[420594453,1776291039795,-151.0,0.00012083,2]
[420594454,1776291039805,-280.576009,0.00012083,2]
[420594455,1776291039814,-151.0,0.00012083,2]
[420594456,1776291039824,-846.7521537,0.00012083,2]
[420594457,1776291039833,-2312.83697232,0.00012113,2]
[420594458,1776291039842,-159.086,0.00012131,2]
[420594459,1776291039852,-595.18886817,0.00012131,2]
[420594460,1776291039862,-552.89415186,0.00012131,2]
[420594461,1776291039871,-2378.37471719,0.00012131,2]
[420594462,1776291039881,-154.0,0.00012132,2]
[420594464,1776291039891,-166.0,0.00012132,2]
[420594465,1776291039900,-155.0,0.00012132,2]
[420594466,1776291039909,-247.84097489,0.00012132,2]
[420594467,1776291039919,-166.0,0.00012132,2]
[420594468,1776291039928,-155.0,0.00012132,2]
[420594469,1776291039937,-166.0,0.00012132,2]
[420594470,1776291039947,-160.01082423,0.00012132,2]
[420594471,1776291039956,-166.0,0.00012132,2]
[420594472,1776291039966,-225.38977988,0.00012132,2]
[420594474,1776291039975,-648.0,0.00012132,2]
[420594475,1776291039984,-648.0,0.00012132,2]
[420594476,1776291039993,-648.0,0.00012132,2]
[420594477,1776291040003,-648.0,0.00012132,2]
[420594478,1776291040013,-648.0,0.00012132,2]
[420594480,1776291040022,-648.0,0.00012132,2]
[420594482,1776291040032,-648.0,0.00012132,2]
[420594484,1776291040042,-648.0,0.00012132,2]
[420594486,1776291040051,-648.0,0.00012132,2]
[420594488,1776291040061,-591.06527015,0.00012132,2]
[420594490,1776291040070,-340.0,0.00012132,2]
[420594492,1776291040080,-340.0,0.00012132,2]
[420594494,1776291040089,-340.0,0.00012132,2]
[420594496,1776291040099,-340.0,0.00012132,2]
[420594498,1776291040108,-462.79861355,0.00012132,2]
[420594500,1776291040118,-500.0,0.00012232,2]
[420594502,1776291040127,-500.0,0.00012232,2]
[420594504,1776291040137,-236.0,0.00012232,2]
[420594506,1776291040146,-500.0,0.00012232,2]
[420594508,1776291040156,-500.0,0.00012232,2]
[420594510,1776291040171,-500.0,0.00012232,2]
[420594512,1776291040181,-443.46687558,0.00012232,2]
[420594514,1776291040191,-151.0,0.00012299,2]
[420594516,1776291040201,-250.349567,0.00012325,2]
[420594518,1776291040211,-583.91,0.00012329,2]
[420594519,1776291040220,-486.59,0.00012329,2]
[420594520,1776291040230,-405.49,0.00012329,2]
[420594521,1776291040240,-337.91,0.00012329,2]
[420594522,1776291040252,-281.59,0.00012329,2]
[420594523,1776291040262,-234.66,0.00012329,2]
[420594524,1776291040271,-195.55,0.00012329,2]
[420594525,1776291040281,-162.96,0.00012329,2]
[420594526,1776291040290,-814.81,0.00012329,2]
[420594527,1776291040300,-151.0,0.00012329,2]
[420594528,1776291040310,-600.0,0.00012366,2]
[420594529,1776291040320,-384.43063055,0.00012505,2]
[420594530,1776291040329,-686.10606249,0.00012561,2]
[420594531,1776291040339,-224.707705,0.00012642,2]
[420594532,1776291040348,-2398.4119403,0.00012661,2]
[420594533,1776291040359,-160.0,0.00012707,2]
[420594534,1776291040369,-271.709125,0.00012707,2]
[420594535,1776291040378,-383.418251,0.00012707,2]
[420594536,1776291040389,-6364.33160357,0.00012733,2]
[420594537,1776291040399,-2360.0,0.00012747,2]
[420594538,1776291040408,-160.0,0.00012752,2]
[420594539,1776291040418,-950.971849,0.00012752,2]
[420594540,1776291040428,-1741.943698,0.00012752,2]
[420594541,1776291040437,-471.90252728,0.00012769,2]
[420594542,1776291040448,-2360.0,0.00012788,2]
[420594543,1776291040458,-3000.0,0.000128,30]
[420594544,1776291040467,-250.349567,0.00012804,2]
[420594545,1776291040476,-2360.0,0.00012807,2]
[420594546,1776291040486,-3000.0,0.0001281,30]
[420594547,1776291040495,-3000.0,0.0001282,30]
[420594548,1776291040505,-2360.0,0.00012829,2]
[420594549,1776291040514,-3000.0,0.0001283,30]
[420594550,1776291040524,-3000.0,0.0001284,30]
[420594551,1776291040533,-2360.0,0.00012849,2]
[420594552,1776291040543,-3000.0,0.0001285,30]
[420594554,1776291040705,-151.0,0.0001285,2]
[420594555,1776291040715,-2360.0,0.00012853,2]
[420594556,1776291040724,-3000.0,0.0001286,30]
[420594557,1776291040733,-151.0,0.0001286,2]
[420594558,1776291040742,-74650.30299038,0.0001286,2]
[420594559,1776291040752,-3000.0,0.0001287,30]
[420594560,1776291040761,-3000.0,0.0001288,30]
[420594561,1776291040770,-3000.0,0.0001289,30]
[420594562,1776291040779,-327.0,0.00012893,2]
[420594563,1776291040789,-3000.0,0.000129,30]
[420594564,1776291040799,-10388.01450623,0.000129,2]
[420594565,1776291040808,-10388.01450623,0.000129,2]
[420594566,1776291040817,-3000.0,0.0001291,30]
[420594567,1776291040826,-3000.0,0.0001292,30]
[420594568,1776291040835,-2360.0,0.00012924,2]
[420594569,1776291040845,-5054.567054,0.0001293,30]
[420594570,1776291040854,-633.45394519,0.00012937,2]
[420594571,1776291040864,-2360.0,0.00012947,2]
[420594572,1776291040873,-2360.0,0.00012952,2]
[420594573,1776291040882,-2360.0,0.00012966,2]
[420594574,1776291040891,-161.0777475,0.00012999,2]
[420594575,1776291040901,-2360.0,0.00013012,2]
[420594576,1776291040910,-2360.0,0.00013014,2]
[420594577,1776291040919,-2360.0,0.00013014,2]
[420594578,1776291040929,-686.10606249,0.0001308,2]
[420594579,1776291040938,-151.0,0.000131,2]
[420594580,1776291040949,-5888.0,0.00013109,2]
[420594581,1776291040957,-2360.0,0.00013141,2]
[420594582,1776291040967,-2360.0,0.00013141,2]
[420594583,1776291040976,-2360.0,0.00013141,2]
[420594584,1776291040986,-2360.0,0.00013182,2]
[420594585,1776291040995,-2360.0,0.00013197,2]
[420594586,1776291041004,-2360.0,0.00013197,2]
[420594587,1776291041014,-1740.96508738,0.00013209,2]
[420594588,1776291041023,-2360.0,0.00013239,2]
[420594589,1776291041032,-250.349567,0.00013283,2]
[420594590,1776291041042,-151.0,0.000133,2]
[420594591,1776291041052,-151.0,0.000133,2]
[420594592,1776291041061,-5888.0,0.00013334,2]
[420594593,1776291041071,-370.512444,0.00013342,2]
[420594594,1776291041080,-155.0,0.00013344,2]
[420594595,1776291041089,-1296.779794,0.00013389,2]
[420594596,1776291041099,-393.902,0.00013422,2]
[420594597,1776291041108,-1371.20249892,0.00013424,2]
[420594598,1776291041118,-10388.01450623,0.00013482,2]
[420594599,1776291041127,-151.0,0.000135,2]
[420594600,1776291041137,-5888.0,0.00013514,2]
[420594601,1776291041146,-686.10606249,0.00013599,2]
[420594602,1776291041156,-151.0,0.000136,2]
[420594603,1776291041165,-455.4898403,0.00013601,2]
[420594604,1776291041175,-196.3514541,0.00013601,2]
[420594605,1776291041184,-720.0,0.00013603,2]
[420594606,1776291041195,-500.0,0.00013673,2]
[420594607,1776291041205,-500.0,0.00013673,2]
[420594608,1776291041214,-500.0,0.00013673,2]
[420594609,1776291041224,-500.0,0.00013673,2]
[420594611,1776291041233,-480.00000005,0.00013673,2]
[420594612,1776291041243,-500.0,0.00013673,2]
[420594613,1776291041252,-502.59634426,0.00013673,2]
[420594614,1776291041262,-310.58964247,0.00013673,2]
[420594615,1776291041272,-500.0,0.00013673,2]
[420594617,1776291041281,-500.0,0.00013673,2]
[420594618,1776291041290,-501.43065135,0.00013673,2]
[420594619,1776291041300,-500.68971163,0.00013673,2]
[420594620,1776291041309,-500.0,0.00013673,2]
[420594621,1776291041318,-526.15244958,0.00013673,2]
[420594622,1776291041328,-1000.0,0.00013698,2]
[420594623,1776291041337,-1000.0,0.00013698,2]
[420594624,1776291041346,-1000.0,0.00013698,2]
[420594625,1776291041356,-1000.0,0.00013698,2]
[420594626,1776291041366,-538.91443226,0.00013698,2]
[420594627,1776291041376,-500.46862575,0.00013698,2]
[420594628,1776291041385,-500.0,0.00013698,2]
[420594629,1776291041395,-500.0,0.00013698,2]
[420594630,1776291041404,-500.0,0.00013698,2]
[420594631,1776291041413,-500.0,0.00013698,2]
[420594633,1776291041423,-500.0,0.00013698,2]
[420594634,1776291041433,-500.0,0.00013698,2]
[420594635,1776291041445,-500.0,0.00013698,2]
[420594636,1776291041454,-500.0,0.00013698,2]
[420594637,1776291041464,-500.0,0.00013698,2]
[420594638,1776291041473,-500.0,0.00013698,2]
[420594639,1776291041483,-500.0,0.00013698,2]
[420594640,1776291041492,-570.4102859,0.00013698,2]
[420594641,1776291041502,-500.0,0.00013698,2]
[420594642,1776291041512,-500.0,0.00013698,2]
[420594643,1776291041521,-500.0,0.00013698,2]
[420594644,1776291041531,-545.09838459,0.00013698,2]
[420594645,1776291041540,-565.91,0.00013698,2]
[420594646,1776291041550,-565.91,0.00013698,2]
[420594647,1776291041559,-565.91,0.00013698,2]
[420594648,1776291041569,-565.91,0.00013698,2]
[420594649,1776291041578,-565.91,0.00013698,2]
[420594650,1776291041587,-565.91,0.00013698,2]
[420594651,1776291041596,-565.91,0.00013698,2]
[420594652,1776291041606,-565.91,0.00013698,2]
[420594653,1776291041615,-565.91,0.00013698,2]
[420594654,1776291041624,-565.91,0.00013698,2]
[420594655,1776291041634,-565.91,0.00013698,2]
[420594656,1776291041643,-565.91,0.00013698,2]
[420594657,1776291041652,-565.91,0.00013698,2]
[420594658,1776291041662,-565.91,0.00013698,2]
[420594659,1776291041671,-565.91,0.00013698,2]
[420594660,1776291041681,-565.91,0.00013698,2]
[420594661,1776291041690,-565.91,0.00013698,2]
[420594662,1776291041700,-565.91,0.00013698,2]
[420594663,1776291041709,-565.91,0.00013698,2]
[420594664,1776291041718,-565.91,0.00013698,2]
[420594665,1776291041728,-565.91,0.00013698,2]
[420594666,1776291041737,-565.91,0.00013698,2]
[420594667,1776291041746,-565.91,0.00013698,2]
[420594668,1776291041756,-565.92807884,0.00013698,2]
[420594669,1776291041765,-541.13,0.00013698,2]
[420594670,1776291041774,-541.13,0.00013698,2]
[420594671,1776291041784,-541.13,0.00013698,2]
[420594672,1776291041793,-541.13,0.00013698,2]
[420594673,1776291041802,-541.13,0.00013698,2]
[420594674,1776291041811,-541.13,0.00013698,2]
[420594675,1776291041821,-500.0,0.00013699,2]
[420594676,1776291041830,-156.0,0.00013699,2]
[420594677,1776291041839,-156.0,0.00013699,2]
[420594678,1776291041848,-180.0,0.00013699,2]
[420594679,1776291041858,-2407.9223073,0.00013699,2]
[420594680,1776291041868,-1050.512005,0.00013699,2]
[420594681,1776291041878,-24171.6833736,0.00013699,2]
[420594682,1776291041887,-3779.6421,0.00013699,2]
[420594683,1776291041896,-183.41748,0.00013699,2]
[420594684,1776291041906,-183.41748,0.00013699,2]
[420594685,1776291041917,-183.41748,0.00013699,2]
[420594686,1776291041926,-183.41748,0.00013699,2]
[420594687,1776291041936,-183.41748,0.00013699,2]
[420594688,1776291041946,-183.41748,0.00013699,2]
[420594689,1776291041955,-183.41748,0.00013699,2]
[420594690,1776291041965,-183.41748,0.00013699,2]
[420594691,1776291041974,-183.41748,0.00013699,2]
[420594692,1776291041983,-183.41748,0.00013699,2]
[420594693,1776291041992,-183.41748,0.00013699,2]
[420594694,1776291042002,-183.41748,0.00013699,2]
[420594695,1776291042011,-183.41748,0.00013699,2]
[420594696,1776291042020,-183.41748,0.00013699,2]
[420594697,1776291042029,-183.41748,0.00013699,2]
[420594698,1776291042038,-183.41748,0.00013699,2]
[420594699,1776291042048,-183.41748,0.00013699,2]
[420594700,1776291042057,-183.41748,0.00013699,2]
[420594701,1776291042066,-183.41748,0.00013699,2]
[420594702,1776291042075,-183.417479,0.00013699,2]
[420594703,1776291042084,-151.0,0.00013699,2]
[420594704,1776291042093,-151.0,0.00013699,2]
[420594705,1776291042103,-151.0,0.00013699,2]
[420594706,1776291042112,-151.0,0.00013699,2]
[420594707,1776291042121,-151.0,0.00013699,2]
[420594708,1776291042130,-151.0,0.00013699,2]
[420594709,1776291042139,-151.0,0.00013699,2]
[420594710,1776291042149,-151.0,0.00013699,2]
[420594711,1776291042158,-151.0,0.00013699,2]
[420594712,1776291042167,-151.0,0.00013699,2]
[420594713,1776291042177,-151.0,0.00013699,2]
[420594714,1776291042187,-151.0,0.00013699,2]
[420594715,1776291042197,-151.0,0.00013699,2]
[420594716,1776291042207,-151.0,0.00013699,2]
[420594717,1776291042216,-240.224374,0.00013699,2]
[420594718,1776291042225,-151.0,0.00013699,2]
[420594719,1776291042234,-151.0,0.00013699,2]
[420594720,1776291042244,-151.0,0.00013699,2]
[420594721,1776291042253,-151.0,0.00013699,2]
[420594722,1776291042263,-151.0,0.00013699,2]
[420594723,1776291042273,-151.0,0.00013699,2]
[420594724,1776291042282,-151.0,0.00013699,2]
[420594725,1776291042292,-151.0,0.00013699,2]
[420594726,1776291042301,-151.0,0.00013699,2]
[420594727,1776291042310,-151.0,0.00013699,2]
[420594728,1776291042319,-151.0,0.00013699,2]
[420594729,1776291042329,-151.0,0.00013699,2]
[420594730,1776291042338,-151.0,0.00013699,2]
[420594731,1776291042351,-151.0,0.00013699,2]
[420594732,1776291042360,-255.385648,0.00013699,2]
[420594733,1776291042370,-1000.0,0.00013699,2]
[420594734,1776291042379,-151.0,0.00013699,2]
[420594736,1776291042389,-151.0,0.00013699,2]
[420594737,1776291042399,-151.0,0.00013699,2]
[420594738,1776291042408,-246.880056,0.00013699,2]
[420594739,1776291042417,-164.180003,0.00013699,2]
[420594740,1776291042426,-164.180003,0.00013699,2]
[420594741,1776291042435,-164.180003,0.00013699,2]
[420594742,1776291042444,-164.180003,0.00013699,2]
[420594743,1776291042453,-164.180003,0.00013699,2]
[420594744,1776291042463,-164.180003,0.00013699,2]
[420594745,1776291042472,-164.180003,0.00013699,2]
[420594746,1776291042481,-164.180003,0.00013699,2]
[420594747,1776291042490,-164.180003,0.00013699,2]
[420594748,1776291042500,-164.180003,0.00013699,2]
[420594749,1776291042510,-164.180003,0.00013699,2]
[420594750,1776291042519,-164.180003,0.00013699,2]
[420594751,1776291042529,-164.180003,0.00013699,2]
[420594752,1776291042538,-164.180003,0.00013699,2]
[420594753,1776291042548,-164.180003,0.00013699,2]
[420594754,1776291042557,-164.180003,0.00013699,2]
[420594755,1776291042567,-164.180003,0.00013699,2]
[420594756,1776291042577,-164.180003,0.00013699,2]
[420594757,1776291042586,-164.180003,0.00013699,2]
[420594758,1776291042596,-164.180007,0.00013699,2]
[420594759,1776291042605,-151.0,0.00013699,2]
[420594760,1776291042615,-151.0,0.00013699,2]
[420594761,1776291042625,-151.0,0.00013699,2]
[420594762,1776291042634,-151.0,0.00013699,2]
[420594763,1776291042644,-151.0,0.00013699,2]
[420594764,1776291042654,-151.0,0.00013699,2]
[420594765,1776291042664,-156.415958,0.00013699,2]
[420594766,1776291042673,-151.0,0.00013699,2]
[420594767,1776291042683,-151.0,0.00013699,2]
[420594768,1776291042692,-151.0,0.00013699,2]
[420594769,1776291042702,-151.0,0.00013699,2]
[420594770,1776291042711,-151.0,0.00013699,2]
[420594771,1776291042721,-151.0,0.00013699,2]
[420594772,1776291042730,-223.794495,0.00013699,2]
[420594773,1776291042740,-319.029811,0.00013699,2]
[420594774,1776291042750,-319.029811,0.00013699,2]
[420594775,1776291042759,-319.029811,0.00013699,2]
[420594776,1776291042768,-319.029811,0.00013699,2]
[420594777,1776291042778,-319.029811,0.00013699,2]
[420594778,1776291042787,-319.029811,0.00013699,2]
[420594779,1776291042797,-319.029811,0.00013699,2]
[420594780,1776291042806,-319.029811,0.00013699,2]
[420594781,1776291042815,-319.029811,0.00013699,2]
[420594782,1776291042824,-319.029811,0.00013699,2]
[420594783,1776291042834,-319.029811,0.00013699,2]
[420594784,1776291042843,-319.029811,0.00013699,2]
[420594785,1776291042852,-319.029811,0.00013699,2]
[420594786,1776291042861,-319.029811,0.00013699,2]
[420594787,1776291042871,-319.029811,0.00013699,2]
[420594788,1776291042881,-319.029811,0.00013699,2]
[420594789,1776291042890,-319.029811,0.00013699,2]
[420594790,1776291042900,-319.029811,0.00013699,2]
[420594791,1776291042909,-319.029811,0.00013699,2]
[420594792,1776291042918,-319.029818,0.00013699,2]
[420594793,1776291042927,-680.225976,0.00013699,2]
[420594794,1776291042937,-680.225976,0.00013699,2]
[420594795,1776291042947,-680.225976,0.00013699,2]
[420594796,1776291042956,-680.225976,0.00013699,2]
[420594797,1776291042966,-680.225976,0.00013699,2]
[420594798,1776291042975,-680.225976,0.00013699,2]
[420594799,1776291042985,-680.225976,0.00013699,2]
[420594800,1776291042994,-680.225976,0.00013699,2]
[420594801,1776291043004,-680.225976,0.00013699,2]
[420594802,1776291043014,-680.225976,0.00013699,2]
[420594803,1776291043023,-680.225976,0.00013699,2]
[420594804,1776291043033,-680.225976,0.00013699,2]
[420594805,1776291043042,-680.225976,0.00013699,2]
[420594806,1776291043051,-680.225976,0.00013699,2]
[420594807,1776291043061,-680.225976,0.00013699,2]
[420594808,1776291043070,-680.225976,0.00013699,2]
[420594809,1776291043079,-680.225976,0.00013699,2]
[420594810,1776291043088,-680.225976,0.00013699,2]
[420594811,1776291043098,-680.225976,0.00013699,2]
[420594812,1776291043109,-680.225971,0.00013699,2]
[420594813,1776291043118,-3032.400903,0.00013699,2]
[420594814,1776291043128,-3032.400903,0.00013699,2]
[420594815,1776291043137,-3032.400903,0.00013699,2]
[420594816,1776291043147,-3032.400903,0.00013699,2]
[420594817,1776291043156,-3032.400903,0.00013699,2]
[420594818,1776291043165,-3032.400903,0.00013699,2]
[420594819,1776291043175,-3032.400903,0.00013699,2]
[420594820,1776291043185,-3032.400903,0.00013699,2]
[420594821,1776291043194,-3032.400903,0.00013699,2]
[420594822,1776291043203,-3032.400903,0.00013699,2]
[420594823,1776291043213,-3032.400903,0.00013699,2]
[420594824,1776291043222,-3032.400903,0.00013699,2]
[420594825,1776291043232,-151.0,0.00013699,2]
[420594826,1776291043242,-3032.400903,0.00013699,2]
[420594827,1776291043252,-151.0,0.00013699,2]
[420594828,1776291043261,-3032.400903,0.00013699,2]
[420594829,1776291043271,-151.0,0.00013699,2]
[420594830,1776291043280,-272.596186,0.00013699,2]
[420594831,1776291043290,-3032.400903,0.00013699,2]
[420594832,1776291043300,-3032.400903,0.00013699,2]
[420594833,1776291043309,-3032.400903,0.00013699,2]
[420594834,1776291043319,-3032.400903,0.00013699,2]
[420594835,1776291043328,-3032.400903,0.00013699,2]
[420594836,1776291043338,-3032.400907,0.00013699,2]
[420594837,1776291043481,-1080.100948,0.00013699,2]
[420594838,1776291043491,-1080.100948,0.00013699,2]
[420594839,1776291043501,-1080.100948,0.00013699,2]
[420594840,1776291043510,-1080.100948,0.00013699,2]
[420594841,1776291043520,-1080.100948,0.00013699,2]
[420594842,1776291043529,-1080.100948,0.00013699,2]
[420594843,1776291043539,-1080.100948,0.00013699,2]
[420594844,1776291043549,-1080.100948,0.00013699,2]
[420594845,1776291043558,-1080.100948,0.00013699,2]
[420594846,1776291043568,-1080.100948,0.00013699,2]
[420594847,1776291043578,-1080.100948,0.00013699,2]
[420594848,1776291043587,-1080.100948,0.00013699,2]
[420594849,1776291043597,-1080.100948,0.00013699,2]
[420594850,1776291043607,-1080.100948,0.00013699,2]
[420594851,1776291043616,-1080.100948,0.00013699,2]
[420594852,1776291043626,-1080.100948,0.00013699,2]
[420594853,1776291043635,-1080.100948,0.00013699,2]
[420594854,1776291043644,-1080.100948,0.00013699,2]
[420594855,1776291043653,-1080.100948,0.00013699,2]
[420594856,1776291043663,-1080.100941,0.00013699,2]
[420594857,1776291043672,-724.802718,0.00013699,2]
[420594858,1776291043682,-724.802718,0.00013699,2]
[420594859,1776291043692,-724.802718,0.00013699,2]
[420594860,1776291043701,-724.802718,0.00013699,2]
[420594861,1776291043711,-724.802718,0.00013699,2]
[420594862,1776291043721,-724.802718,0.00013699,2]
[420594863,1776291043730,-724.802718,0.00013699,2]
[420594864,1776291043740,-724.802718,0.00013699,2]
[420594865,1776291043749,-724.802718,0.00013699,2]
[420594866,1776291043758,-724.802718,0.00013699,2]
[420594867,1776291043767,-724.802718,0.00013699,2]
[420594868,1776291043776,-724.802718,0.00013699,2]
[420594869,1776291043786,-724.802718,0.00013699,2]
[420594870,1776291043795,-724.802718,0.00013699,2]
[420594871,1776291043804,-724.802718,0.00013699,2]
[420594872,1776291043813,-724.802718,0.00013699,2]
[420594873,1776291043822,-724.802718,0.00013699,2]
[420594874,1776291043832,-724.802718,0.00013699,2]
[420594875,1776291043841,-724.802718,0.00013699,2]
[420594876,1776291043850,-724.802721,0.00013699,2]
[420594877,1776291043859,-161.262387,0.00013699,2]
[420594878,1776291043869,-161.262387,0.00013699,2]
[420594879,1776291043878,-161.262387,0.00013699,2]
[420594880,1776291043887,-161.262387,0.00013699,2]
[420594881,1776291043897,-161.262387,0.00013699,2]
[420594882,1776291043906,-161.262387,0.00013699,2]
[420594883,1776291043916,-161.262387,0.00013699,2]
[420594884,1776291043925,-161.262387,0.00013699,2]
[420594885,1776291043935,-161.262387,0.00013699,2]
[420594886,1776291043944,-161.262387,0.00013699,2]
[420594887,1776291043953,-161.262387,0.00013699,2]
[420594888,1776291043963,-161.262387,0.00013699,2]
[420594889,1776291043972,-161.262387,0.00013699,2]
[420594890,1776291043982,-161.262387,0.00013699,2]
[420594891,1776291043991,-161.262387,0.00013699,2]
[420594892,1776291044001,-161.262387,0.00013699,2]
[420594893,1776291044010,-161.262387,0.00013699,2]
[420594894,1776291044019,-161.262387,0.00013699,2]
[420594895,1776291044029,-161.262387,0.00013699,2]
[420594896,1776291044038,-161.262387,0.00013699,2]
[420594897,1776291044047,-151.0,0.00013699,2]
[420594898,1776291044056,-151.0,0.00013699,2]
[420594899,1776291044066,-151.0,0.00013699,2]
[420594900,1776291044075,-151.0,0.00013699,2]
[420594901,1776291044084,-151.0,0.00013699,2]
[420594902,1776291044094,-151.0,0.00013699,2]
[420594903,1776291044103,-151.0,0.00013699,2]
[420594904,1776291044112,-151.0,0.00013699,2]
[420594905,1776291044122,-151.0,0.00013699,2]
[420594906,1776291044131,-151.0,0.00013699,2]
[420594907,1776291044140,-151.0,0.00013699,2]
[420594908,1776291044150,-151.0,0.00013699,2]
[420594909,1776291044159,-151.0,0.00013699,2]
[420594910,1776291044168,-151.0,0.00013699,2]
[420594911,1776291044178,-151.0,0.00013699,2]
[420594912,1776291044187,-151.0,0.00013699,2]
[420594913,1776291044197,-268.701221,0.00013699,2]
[420594914,1776291044206,-151.0,0.00013699,2]
[420594915,1776291044216,-151.0,0.00013699,2]
[420594916,1776291044225,-151.0,0.00013699,2]
[420594917,1776291044235,-532.742682,0.00013699,2]
[420594918,1776291044244,-532.742682,0.00013699,2]
[420594919,1776291044253,-532.742682,0.00013699,2]
[420594920,1776291044263,-532.742682,0.00013699,2]
[420594921,1776291044272,-532.742682,0.00013699,2]
[420594922,1776291044282,-532.742682,0.00013699,2]
[420594923,1776291044291,-532.742682,0.00013699,2]
[420594924,1776291044301,-532.742682,0.00013699,2]
[420594925,1776291044310,-532.742682,0.00013699,2]
[420594926,1776291044319,-532.742682,0.00013699,2]
[420594927,1776291044329,-532.742682,0.00013699,2]
[420594928,1776291044339,-532.742682,0.00013699,2]
[420594929,1776291044348,-532.742682,0.00013699,2]
[420594930,1776291044358,-532.742682,0.00013699,2]
[420594931,1776291044368,-532.742682,0.00013699,2]
[420594932,1776291044377,-532.742682,0.00013699,2]
[420594933,1776291044386,-532.742682,0.00013699,2]
[420594934,1776291044396,-532.742682,0.00013699,2]
[420594935,1776291044405,-532.742682,0.00013699,2]
[420594936,1776291044415,-532.742685,0.00013699,2]
[420594937,1776291044424,-1439.0,0.00013699,2]
[420594938,1776291044433,-500.0,0.00013699,2]
[420594939,1776291044442,-153.0,0.00013699,2]
[420594940,1776291044451,-153.0,0.00013699,2]